bitfinex-derivatives/quotes_ETHF0:USTF0_20260312
["timestamp","ask_amount","ask_price","bid_price","bid_amount"]
[1773326593582,5.14042907,2040.2,2039.4,5.12258825]
[1773326593783,5.14042907,2040.2,2039.3,7.04]
[1773326594477,5.14042907,2040.2,2039.2,5.12258825]
[1773326596076,5.13637066,2040.0,2039.0,0.0062285]
[1773326596276,5.13637066,2039.8,2039.0,0.0062285]
[1773326596478,5.13637066,2039.6,2038.5,12.16258825]
[1773326596781,5.13637066,2039.6,2038.7,5.12258825]
[1773326596978,5.13637066,2039.6,2038.9,5.12258825]
[1773326597583,5.13637066,2039.6,2038.9,5.12880094]
[1773326598380,5.13637066,2040.1,2038.9,5.12880094]
[1773326599179,5.13637066,2039.9,2038.9,0.00621269]
[1773326599377,5.13637066,2039.7,2038.9,0.00621269]
[1773326603385,5.13637066,2039.7,2038.9,5.16901191]
[1773326603784,5.13637066,2039.7,2038.9,0.00621269]
[1773326604582,5.19284253,2039.5,2038.5,5.16279922]
[1773326604776,5.19284253,2039.5,2038.6,5.16279922]
[1773326605487,5.19284253,2039.5,2038.5,12.20379922]
[1773326605785,5.19284253,2039.5,2038.6,5.16279922]
[1773326608089,7.042,2039.9,2038.6,5.40800922]
[1773326608291,5.19284253,2039.7,2038.6,5.40800922]
[1773326608495,5.19284253,2040.0,2038.6,5.16279922]
[1773326608692,5.19284253,2040.0,2039.2,0.24515]
[1773326608889,5.19690094,2040.2,2039.4,5.16279922]
[1773326611095,0.00405841,2040.2,2039.4,5.16279922]
[1773326611295,5.19690094,2040.2,2039.4,5.16279922]
[1773326611893,0.00405841,2040.2,2039.4,5.16279922]
[1773326612093,5.19284253,2040.4,2039.4,5.16279922]
[1773326612796,5.19284253,2040.6,2039.4,5.16279922]
[1773326613192,5.19823404,2040.6,2039.4,5.16279922]
[1773326613599,5.19823404,2040.6,2039.6,5.11520526]
[1773326613902,0.00539151,2040.6,2039.8,5.11031366]
[1773326614097,5.19284253,2040.8,2040.0,5.11031366]
[1773326614893,5.19284253,2041.0,2040.0,5.11031366]
[1773326615092,0.00620244,2041.0,2040.2,5.09286717]
[1773326615395,5.19284253,2041.5,2040.4,5.09286717]
[1773326615594,5.19284253,2042.0,2040.8,5.08784427]
[1773326616295,0.00479465,2042.0,2041.2,5.08811543]
[1773326616602,5.19763718,2042.0,2041.4,5.0831312]
[1773326616897,5.19284253,2042.6,2041.4,5.0831312]
[1773326617193,5.19284253,2042.6,2041.6,5.09503923]
[1773326617396,5.19284253,2042.6,2041.7,12.13603923]
[1773326617696,5.19284253,2042.6,2041.3,5.08962704]
[1773326617895,5.1985585,2042.6,2041.4,12.13091077]
[1773326618202,5.1985585,2042.6,2041.4,7.041]
[1773326618203,5.19284253,2042.4,2041.4,7.041]
[1773326619094,5.19284253,2042.4,2041.5,5.16279922]
[1773326619398,5.19284253,2042.4,2041.4,7.041]
[1773326619596,5.19284253,2042.4,2041.5,5.16279922]
[1773326619798,5.19284253,2042.4,2041.6,7.04]
[1773326619999,5.19284253,2042.4,2041.7,5.1604918]
[1773326620300,5.19284253,2042.4,2041.6,7.04]
[1773326620301,5.19284253,2042.4,2041.3,5.16467884]
[1773326620501,5.19284253,2042.4,2041.4,12.2004918]
[1773326621096,5.19284253,2042.4,2041.3,0.00418704]
[1773326621302,5.19284253,2042.4,2041.4,7.04]
[1773326621697,5.19284253,2042.3,2041.4,7.04]
[1773326622600,5.19284253,2042.3,2041.4,12.14180909]
[1773326623192,5.19284253,2042.3,2041.5,5.14996468]
[1773326624600,5.19284253,2042.3,2041.4,12.18403277]
[1773326624995,5.19284253,2042.3,2041.5,5.15023434]
[1773326625397,5.19284253,2042.3,2041.5,7.04]
[1773326626096,5.19284253,2042.3,2041.5,12.18513819]
[1773326626697,5.19284253,2042.3,2041.5,7.04]
[1773326626899,5.1324126,2042.0,2041.3,0.00418704]
[1773326627093,5.1324126,2042.0,2041.3,7.04418704]
[1773326629506,5.1324126,2042.2,2041.4,5.10884726]
[1773326629902,5.1324126,2042.0,2041.2,5.10384296]
[1773326630101,5.1324126,2042.0,2041.2,12.14484296]
[1773326630703,5.1324126,2042.0,2041.0,4.9313701]
[1773326630903,5.05827228,2041.7,2041.1,7.041]
[1773326631703,5.05827228,2042.1,2041.2,4.9313701]
[1773326632005,5.05827228,2041.8,2041.1,11.9723701]
[1773326632405,5.05827228,2041.8,2041.0,0.00383882]
[1773326632605,5.05827228,2041.8,2041.0,7.04483882]
[1773326632801,5.05827228,2041.8,2040.9,4.9313701]
[1773326632802,5.05827228,2041.5,2040.7,4.9313701]
[1773326633106,5.05827228,2041.2,2040.5,7.041]
[1773326633303,5.05827228,2041.2,2040.3,4.9313701]
[1773326633608,5.05827228,2040.9,2040.3,7.041]
[1773326633801,5.06409397,2040.9,2040.3,7.04547142]
[1773326634002,5.06409397,2040.9,2040.3,0.00447142]
[1773326634198,5.06409397,2040.9,2040.1,4.9313701]
[1773326634403,7.93639845,2040.7,2040.1,4.9313701]
[1773326634605,5.05827228,2040.7,2040.1,4.9313701]
[1773326635210,5.05827228,2040.7,2040.1,11.97687206]
[1773326635505,0.00582169,2040.9,2040.1,11.97687206]
[1773326635506,5.06409397,2040.9,2040.2,4.9313701]
[1773326635704,0.00582169,2040.9,2040.2,4.9313701]
[1773326636403,5.05827228,2041.3,2040.2,5.1764001]
[1773326636608,5.05827228,2041.2,2040.2,4.9313701]
[1773326637509,5.06376082,2041.2,2040.2,4.9313701]
[1773326639206,5.06376082,2041.2,2040.1,0.00450196]
[1773326639409,5.05827228,2040.9,2040.1,4.93587206]
[1773326640510,5.05827228,2040.9,2040.1,0.00450196]
[1773326640713,5.05827228,2040.6,2039.8,4.9313701]
[1773326641617,5.05827228,2040.8,2039.8,4.93721207]
[1773326642111,3.12852471,2041.2,2039.8,4.93721207]
[1773326642112,5.05827228,2041.1,2040.0,4.9313701]
[1773326642414,0.00548854,2041.2,2040.4,4.9313701]
[1773326642613,0.00548854,2041.2,2040.6,4.9313701]
[1773326642808,2.87812617,2041.8,2040.6,4.9313701]
[1773326643015,5.05827228,2041.7,2040.6,4.9313701]
[1773326643209,5.05827228,2041.7,2040.0,16.22209821]
[1773326643210,5.05827228,2041.1,2039.9,4.9313701]
[1773326643420,5.05827228,2040.7,2039.8,0.00584197]
[1773326643913,5.06202957,2040.7,2039.8,0.00584197]
[1773326644315,5.05827228,2040.4,2039.6,7.044]
[1773326645413,5.05827228,2040.6,2039.7,4.9313701]
[1773326646518,5.05827228,2040.9,2040.1,4.9313701]
[1773326646714,5.05827228,2041.3,2040.3,4.9313701]
[1773326647317,2.87812617,2041.7,2040.5,4.9313701]
[1773326647318,5.05827228,2041.6,2040.5,4.9313701]
[1773326647514,5.05827228,2041.9,2040.7,4.9313701]
[1773326647718,5.05827228,2041.8,2040.8,11.9763701]
[1773326647919,5.05827228,2041.8,2040.8,4.9313701]
[1773326648312,5.05827228,2041.5,2040.7,7.045]
[1773326648717,5.05827228,2041.5,2040.7,11.9763701]
[1773326648916,5.05827228,2041.5,2040.8,4.9313701]
[1773326649116,2.88432114,2041.9,2040.8,4.9313701]
[1773326649317,5.05827228,2041.8,2040.8,4.9313701]
[1773326650224,5.05827228,2041.8,2040.8,11.9763701]
[1773326651215,5.05827228,2041.8,2040.9,4.9313701]
[1773326651719,9.92932114,2041.9,2040.7,4.9313701]
[1773326651720,5.05827228,2041.5,2040.7,4.9313701]
[1773326651917,5.05827228,2041.5,2040.8,4.9313701]
[1773326652113,5.05827228,2041.7,2040.8,5.1763301]
[1773326652315,5.06446725,2041.9,2040.8,5.1763301]
[1773326653018,0.00619497,2041.9,2041.1,5.1861901]
[1773326653216,5.05827228,2042.3,2041.3,4.9313701]
[1773326653416,5.05827228,2042.3,2041.5,5.1911901]
[1773326653622,5.05827228,2042.3,2041.6,5.1908401]
[1773326653822,5.05827228,2042.3,2041.6,5.1790801]
[1773326654222,5.06352629,2042.3,2041.6,5.18338685]
[1773326654420,5.05827228,2042.5,2041.7,5.4386801]
[1773326654720,5.05827228,2042.9,2041.7,5.4386801]
[1773326654919,5.05827228,2042.9,2042.0,5.1986201]
[1773326655122,5.05827228,2042.9,2041.7,6.02347]
[1773326655123,5.05827228,2043.1,2042.2,4.9313701]
[1773326655322,5.05827228,2043.1,2042.3,11.9753701]
[1773326655624,5.05827228,2043.1,2042.4,5.1974101]
[1773326655625,5.06347516,2043.1,2042.4,5.1974101]
[1773326656314,5.06347516,2043.1,2042.3,5.1771801]
[1773326656514,5.06347516,2043.1,2042.5,5.1864001]
[1773326656719,5.03847516,2043.1,2042.5,5.1897201]
[1773326656915,5.03847516,2043.1,2042.4,7.044]
[1773326657120,5.03847516,2043.1,2042.4,7.2949]
[1773326657320,5.01347516,2043.1,2042.4,7.2949]
[1773326657625,5.01347516,2043.1,2042.4,7.29457]
[1773326657825,5.01347516,2043.1,2042.4,7.2902]
[1773326658027,5.01347516,2043.1,2042.5,4.9313701]
[1773326658326,4.98847516,2043.1,2042.4,7.044]
[1773326658824,4.98847516,2043.1,2042.4,11.9753701]
[1773326659127,4.96347516,2043.1,2042.5,4.9313701]
[1773326659517,4.96347516,2043.1,2042.4,7.044]
[1773326659721,4.96347516,2043.1,2042.3,7.043]
[1773326660327,4.96347516,2043.1,2042.3,12.31995645]
[1773326660527,4.96347516,2043.1,2042.3,12.56697645]
[1773326660828,4.96347516,2043.1,2042.3,12.31995645]
[1773326661228,4.96347516,2043.1,2042.4,5.53176645]
[1773326661424,0.00520288,2043.1,2042.4,5.27695645]
[1773326661630,5.18971616,2043.3,2042.4,5.27695645]
[1773326661934,5.16471616,2043.3,2042.4,5.27695645]
[1773326662120,5.16471616,2043.3,2042.3,7.043]
[1773326662121,5.16471616,2043.3,2042.6,5.27695645]
[1773326662321,5.18971616,2043.8,2042.6,5.53942645]
[1773326662528,5.18971616,2043.8,2042.5,0.24476]
[1773326662529,5.19477462,2043.8,2042.8,5.53919645]
[1773326662731,5.18971616,2043.5,2042.7,7.043]
[1773326662928,5.18971616,2043.5,2042.7,7.28897]
[1773326663131,5.18971616,2043.5,2042.8,5.53290645]
[1773326663331,5.18971616,2043.5,2042.8,5.47090645]
[1773326663528,5.19477462,2043.8,2042.8,5.47090645]
[1773326664224,5.18971616,2043.5,2042.5,5.27695645]
[1773326664533,5.18971616,2043.7,2042.7,5.53109645]
[1773326664828,5.18971616,2043.7,2042.9,5.53250645]
[1773326665028,5.18971616,2043.7,2043.0,12.57640645]
[1773326665029,5.16471616,2043.7,2043.0,12.57640645]
[1773326665329,5.16471616,2043.7,2042.8,5.27695645]
[1773326665531,5.16471616,2043.7,2042.9,7.042]
[1773326665732,2.87812617,2043.6,2042.9,7.042]
[1773326666029,5.19477462,2043.8,2043.0,5.27695645]
[1773326667733,5.18971616,2043.6,2042.8,0.24471]
[1773326667934,5.18971616,2043.6,2042.9,12.31995645]
[1773326668629,5.18971616,2043.6,2043.0,5.27695645]
[1773326669827,5.18971616,2043.3,2042.7,5.27695645]
[1773326670136,5.19477462,2043.8,2042.9,5.27695645]
[1773326670335,5.19477462,2043.8,2043.1,5.27695645]
[1773326670533,5.18971616,2044.2,2043.3,5.27695645]
[1773326670732,5.18971616,2044.2,2043.5,5.27695645]
[1773326670932,5.18971616,2044.6,2043.5,5.27695645]
[1773326671327,5.18971616,2044.6,2043.3,5.27695645]
[1773326671630,2.87812617,2044.4,2043.5,5.27695645]
[1773326671833,5.18971616,2044.3,2043.5,5.27695645]
[1773326672432,5.19359669,2044.6,2043.6,5.52157645]
[1773326672737,5.18971616,2044.5,2043.6,5.27695645]
[1773326673031,5.18971616,2044.2,2043.4,5.27695645]
[1773326673236,5.18971616,2044.2,2043.5,5.27695645]
[1773326675128,5.18971616,2044.4,2043.6,7.042]
[1773326675329,5.18971616,2044.4,2043.6,12.31895645]
[1773326675636,0.00388053,2044.6,2043.7,5.27695645]
[1773326675836,5.19359669,2044.6,2043.7,5.27695645]
[1773326676134,5.18971616,2044.5,2043.5,5.52158645]
[1773326676338,5.18971616,2044.5,2043.6,7.043]
[1773326677033,5.18971616,2044.5,2043.6,12.31995645]
[1773326677932,5.18971616,2044.5,2043.7,5.27695645]
[1773326678740,4.894,2045.5,2044.1,6.01641]
[1773326679032,3.99568415,2045.9,2044.2,12.31995645]
[1773326679033,5.18971616,2045.3,2044.2,12.31995645]
[1773326679239,5.18971616,2045.3,2044.3,5.27695645]
[1773326679727,5.19431363,2045.3,2044.3,5.27695645]
[1773326679928,5.19431363,2045.3,2044.7,0.24448]
[1773326679929,0.00459747,2045.3,2044.7,0.24448]
[1773326680129,0.24431,2046.3,2044.9,5.27695645]
[1773326680130,5.18971616,2045.8,2044.9,5.27695645]
[1773326680536,7.043,2046.2,2045.1,5.27695645]
[1773326680537,5.18971616,2046.2,2045.1,5.27695645]
[1773326680736,5.18971616,2046.2,2044.8,7.043]
[1773326680737,5.18971616,2045.9,2044.9,5.27695645]
[1773326681136,5.1940709,2045.9,2044.9,5.28207798]
[1773326681336,0.00435474,2045.9,2044.9,5.28207798]
[1773326681536,5.1940709,2045.9,2044.9,5.28207798]
[1773326681740,5.18971616,2045.6,2044.9,0.00512153]
[1773326682339,5.18971616,2045.6,2044.9,5.28207798]
[1773326682537,5.18971616,2045.6,2044.9,0.00512153]
[1773326684338,5.18971616,2045.6,2044.4,5.07920826]
[1773326684938,5.18971616,2045.6,2044.6,5.07920826]
[1773326685144,5.18971616,2045.6,2044.1,13.05839]
[1773326685145,5.18971616,2045.6,2044.4,5.07920826]
[1773326685334,5.18971616,2045.6,2044.4,5.08390542]
[1773326686646,5.18971616,2045.6,2044.5,7.042]
[1773326687040,5.2104045,2045.4,2044.5,12.12120826]
[1773326687639,5.2104045,2045.4,2044.6,5.07920826]
[1773326688245,5.2104045,2045.4,2044.5,7.042]
[1773326688544,5.2104045,2045.0,2044.4,0.00469716]
[1773326689343,5.2104045,2045.0,2044.1,7.042]
[1773326689344,5.2104045,2044.6,2043.7,12.12120826]
[1773326689842,5.2104045,2044.6,2043.7,12.12220826]
[1773326690048,5.2104045,2044.6,2043.8,5.07920826]
[1773326690244,5.2104045,2044.6,2043.8,5.08350927]
[1773326691549,4.9715513,2045.0,2044.0,5.28277361]
[1773326692447,4.7758513,2045.0,2044.0,5.28277361]
[1773326693340,4.7758513,2045.0,2044.1,5.28277361]
[1773326695649,4.7758513,2045.0,2044.0,7.044]
[1773326696544,7.044,2045.2,2044.1,5.28277361]
[1773326696746,4.9715513,2045.3,2044.6,4.29685225]
[1773326696947,4.9715513,2045.7,2044.8,4.29685225]
[1773326697446,4.9715513,2045.7,2044.7,7.044]
[1773326697950,4.9715513,2045.7,2044.7,11.49108629]
[1773326698540,4.9715513,2045.7,2044.7,7.044]
[1773326698750,4.9715513,2045.7,2044.7,11.54159489]
[1773326699045,4.9715513,2045.6,2044.5,4.49759489]
[1773326699551,4.70828353,2045.6,2044.5,4.49759489]
[1773326700047,4.70828353,2045.6,2044.7,4.75670721]
[1773326700252,4.70828353,2045.6,2044.2,4.75670721]
[1773326701146,4.9715513,2045.3,2044.1,4.76470222]
[1773326701344,4.9715513,2045.2,2044.1,4.76470222]
[1773326701546,4.9715513,2045.4,2044.5,4.76470222]
[1773326701946,4.9715513,2045.4,2044.4,0.24453]
[1773326701947,4.9715513,2045.8,2044.9,4.76042992]
[1773326702151,0.00435474,2045.9,2045.1,4.76042992]
[1773326702352,4.97590604,2045.9,2045.1,4.76042992]
[1773326702552,4.97590604,2045.9,2045.0,7.044]
[1773326702953,4.97590604,2045.9,2044.7,4.74844303]
[1773326703148,4.9715513,2045.7,2044.8,4.74844303]
[1773326703448,4.97590604,2045.9,2044.8,4.74844303]
[1773326703750,4.97590604,2045.9,2045.0,4.74844303]
[1773326703953,4.9715513,2046.3,2045.4,4.7441183]
[1773326705049,4.9715513,2046.3,2045.1,7.045]
[1773326705050,4.9715513,2046.1,2045.1,7.045]
[1773326705354,4.9715513,2045.7,2044.4,4.7984329]
[1773326705562,4.9715513,2045.7,2043.4,4.7984329]
[1773326705563,4.9715513,2044.5,2043.4,4.7984329]
[1773326706045,4.97569808,2044.5,2043.4,4.80277396]
[1773326706443,4.97569808,2044.5,2043.4,0.00434106]
[1773326706847,4.9715513,2044.3,2043.4,4.65566909]
[1773326707054,4.97569808,2044.5,2043.4,4.65566909]
[1773326709148,4.9715513,2045.0,2043.6,4.58946642]
[1773326709348,4.9715513,2045.0,2044.0,4.58946642]
[1773326710249,4.97780106,2045.0,2044.0,4.58946642]
[1773326711155,4.97780106,2045.0,2043.8,4.66283044]
[1773326711856,4.9715513,2044.8,2043.7,7.045]
[1773326712951,4.9715513,2044.6,2043.5,4.65851466]
[1773326713352,4.9715513,2044.6,2043.4,0.00434106]
[1773326713953,4.9715513,2044.6,2043.4,4.61394112]
[1773326714959,4.9715513,2044.5,2043.4,4.61394112]
[1773326715459,4.9715513,2044.5,2043.4,0.00434106]
[1773326715460,5.2160713,2044.5,2043.4,0.00434106]
[1773326715958,5.50007735,2044.5,2043.4,0.00434106]
[1773326716159,5.50007735,2044.5,2042.9,11.64816825]
[1773326716160,4.9715513,2044.2,2042.9,11.64816825]
[1773326716361,7.046,2044.1,2042.9,4.60216825]
[1773326716550,4.9715513,2044.0,2042.7,4.59839245]
[1773326716950,4.9715513,2043.8,2042.6,8.36242304]
[1773326717157,4.9715513,2043.6,2042.7,4.63499386]
[1773326717456,4.9715513,2043.5,2042.6,8.36827069]
[1773326717755,4.9756242,2043.5,2042.6,8.36827069]
[1773326717956,4.9756242,2043.5,2042.7,4.62724817]
[1773326718456,4.9756242,2043.5,2042.6,12.99551886]
[1773326718761,4.9756242,2043.5,2042.7,4.62724817]
[1773326719663,4.9756242,2043.5,2042.6,8.36827069]
[1773326719861,4.9756242,2043.5,2042.6,1.32227069]
[1773326720057,12.0226242,2043.5,2042.6,1.32227069]
[1773326720359,4.9715513,2043.4,2042.6,1.32227069]
[1773326721359,4.9715513,2043.4,2041.7,0.24484]
[1773326721360,5.15707174,2043.3,2041.9,5.0087147]
[1773326721561,5.15707174,2043.3,2042.1,5.0087147]
[1773326721755,5.15707174,2043.4,2042.3,5.0087147]
[1773326721951,5.15707174,2043.4,2042.2,5.2535047]
[1773326722357,5.15707174,2043.4,2042.2,5.25708603]
[1773326722759,0.0040729,2043.5,2042.5,11.0298347]
[1773326722958,5.15707174,2044.3,2042.7,5.0087147]
[1773326723158,5.15707174,2044.3,2043.2,5.2533747]
[1773326723361,5.15707174,2044.3,2043.1,6.01936]
[1773326723362,5.15707174,2044.9,2043.4,5.2533647]
[1773326723563,5.15707174,2044.8,2043.4,5.2533647]
[1773326724064,5.15707174,2044.8,2043.5,5.0087147]
[1773326724265,0.00391442,2044.8,2043.7,5.0087147]
[1773326724565,0.00391442,2044.8,2043.7,5.01294954]
[1773326724772,5.16098616,2044.8,2043.7,0.00423484]
[1773326724957,5.16098616,2044.8,2043.7,5.01294954]
[1773326726166,5.16098616,2044.8,2043.9,5.0087147]
[1773326726562,0.00391442,2044.8,2044.1,5.0087147]
[1773326726865,0.00391442,2044.8,2044.1,12.0557147]
[1773326727067,5.15707174,2045.2,2044.4,5.0087147]
[1773326727267,5.15707174,2045.5,2044.6,5.0087147]
[1773326727468,5.15707174,2045.5,2044.8,5.0087147]
[1773326728166,5.16069474,2045.5,2044.8,5.0087147]
[1773326729266,0.003623,2045.5,2044.8,5.0087147]
[1773326729668,5.16069474,2045.5,2044.8,5.0087147]
[1773326730165,5.16069474,2045.5,2044.5,0.24452]
[1773326730166,0.003623,2045.5,2044.6,5.0087147]
[1773326730363,5.16069474,2045.5,2044.6,5.0087147]
[1773326730570,5.16069474,2045.5,2044.4,5.0087147]
[1773326731164,5.16069474,2045.5,2044.3,7.046]
[1773326731367,5.15707174,2045.1,2044.0,7.046]
[1773326731665,5.15707174,2044.9,2043.8,5.0087147]
[1773326732566,5.15707174,2044.9,2044.0,5.0087147]
[1773326732964,5.15707174,2045.3,2044.0,5.0087147]
[1773326734173,5.15707174,2045.3,2043.7,7.05023484]
[1773326734174,5.15707174,2045.3,2043.8,5.0087147]
[1773326734464,5.15707174,2045.1,2043.8,5.0087147]
[1773326736370,5.15707174,2045.0,2043.8,5.0087147]
[1773326740573,5.15707174,2044.8,2043.7,7.05023484]
[1773326741472,5.15707174,2044.8,2043.7,12.05894954]
[1773326741675,5.15707174,2044.6,2043.8,5.0087147]
[1773326741976,0.24447,2044.9,2043.8,5.0087147]
[1773326741977,5.15707174,2044.8,2043.8,5.2533047]
[1773326742372,12.20307174,2045.1,2043.8,11.0259847]
[1773326742577,0.003623,2045.5,2043.8,11.0259847]
[1773326742578,0.003623,2045.5,2044.5,5.0087147]
[1773326742779,0.003623,2045.5,2044.7,5.0087147]
[1773326742977,0.003623,2045.5,2044.9,5.0087147]
[1773326743378,5.15707174,2046.0,2044.9,5.0087147]
[1773326744373,5.40507801,2046.0,2044.6,5.06667363]
[1773326744575,4.77518685,2045.5,2044.3,7.046]
[1773326744875,4.77518685,2045.3,2044.3,12.11267363]
[1773326745580,4.77518685,2045.3,2044.3,7.046]
[1773326745782,4.77518685,2045.2,2044.3,7.046]
[1773326746673,4.77518685,2045.2,2044.0,5.06667363]
[1773326747680,4.77518685,2045.2,2044.0,5.31124363]
[1773326747880,4.77518685,2045.2,2044.0,5.06667363]
[1773326748179,4.77518685,2045.2,2044.1,7.045]
[1773326748381,4.77518685,2044.9,2044.1,7.045]
[1773326748571,4.77518685,2044.7,2043.8,12.11167363]
[1773326749079,4.77518685,2044.7,2043.9,5.06667363]
[1773326749481,4.77518685,2044.7,2043.8,7.045]
[1773326749981,4.77518685,2044.7,2043.8,12.11167363]
[1773326750371,4.77518685,2044.7,2043.9,5.15989334]
[1773326751781,4.77518685,2044.7,2043.8,7.045]
[1773326752283,4.8793918,2044.5,2043.7,0.00423484]
[1773326752583,4.88575433,2044.5,2043.7,5.16412818]
[1773326752982,4.88575433,2044.5,2043.7,0.00423484]
[1773326753581,5.13027433,2044.5,2043.7,0.00423484]
[1773326753778,4.8793918,2044.3,2043.7,0.00423484]
[1773326754086,4.88575433,2044.5,2043.7,5.16412818]
[1773326755373,0.00636253,2044.5,2043.9,5.15989334]
[1773326755573,0.00636253,2044.5,2044.0,5.15989334]
[1773326755774,4.88575433,2044.5,2044.0,5.15989334]
[1773326756379,4.88575433,2044.5,2043.9,7.046]
[1773326759380,4.88575433,2044.5,2044.0,5.15989334]
[1773326759381,0.00636253,2044.5,2044.0,5.15989334]
[1773326759584,4.88575433,2044.5,2044.0,5.15989334]
[1773326759982,4.88575433,2044.5,2043.7,0.00423484]
[1773326759983,4.88575433,2044.5,2043.8,5.15989334]
[1773326760180,4.88575433,2044.5,2043.7,0.00423484]
[1773326760381,4.88575433,2044.5,2043.7,5.16412818]
[1773326760582,4.88575433,2044.5,2043.7,0.00423484]
[1773326760782,4.88575433,2044.5,2043.7,5.40873818]
[1773326761088,4.8793918,2045.1,2044.4,5.15989334]
[1773326761283,4.8793918,2045.5,2044.5,5.15989334]
[1773326761477,4.8793918,2045.8,2044.7,5.15989334]
[1773326761784,4.8793918,2045.4,2044.3,5.15989334]
[1773326761985,4.88469,2045.4,2044.3,7.047]
[1773326762179,0.0052982,2045.4,2044.3,5.15989334]
[1773326762389,4.8793918,2046.0,2044.5,5.15989334]
[1773326762585,4.8793918,2046.2,2045.0,5.15989334]
[1773326763088,4.8793918,2045.9,2045.0,5.15989334]
[1773326763479,4.88327064,2045.9,2045.0,5.15989334]
[1773326763888,4.8793918,2045.8,2044.7,5.15989334]
[1773326764582,4.8793918,2045.5,2044.3,5.15989334]
[1773326765588,4.8793918,2045.8,2044.5,5.15989334]
[1773326765782,4.8793918,2045.8,2044.7,5.15989334]
[1773326766087,4.8793918,2045.8,2044.9,5.15989334]
[1773326766284,0.1957,2046.5,2045.1,5.15989334]
[1773326766285,5.0750918,2046.5,2045.1,5.15989334]
[1773326766582,5.0750918,2046.5,2045.5,5.15989334]
[1773326766784,5.0750918,2046.5,2045.7,5.15989334]
[1773326766984,0.24423,2046.9,2045.9,5.15989334]
[1773326766985,4.8793918,2046.9,2045.9,5.15989334]
[1773326767184,4.8793918,2047.0,2045.6,5.15989334]
[1773326767378,4.8793918,2047.0,2046.0,5.15989334]
[1773326767379,4.88430447,2047.0,2046.0,5.15989334]
[1773326767593,4.88430447,2047.0,2045.7,12.20489334]
[1773326767778,4.88430447,2047.0,2045.8,5.15989334]
[1773326767985,4.88430447,2047.0,2046.2,5.15989334]
[1773326768179,0.00491267,2047.0,2046.4,5.15989334]
[1773326768385,2.86952472,2046.9,2045.9,5.15989334]
[1773326768586,4.8793918,2046.8,2045.6,5.16493528]
[1773326768790,4.8793918,2046.8,2045.8,5.15989334]
[1773326769580,4.8793918,2046.8,2045.6,0.00504194]
[1773326769790,4.8793918,2046.5,2045.6,5.16493528]
[1773326770092,4.8793918,2046.2,2045.6,0.00504194]
[1773326770286,4.8793918,2045.9,2045.0,5.15989334]
[1773326770586,4.8793918,2045.9,2044.4,5.15989334]
[1773326770783,4.8793918,2045.9,2044.7,5.15989334]
[1773326770985,4.8793918,2045.9,2045.0,5.15989334]
[1773326771291,6.01282267,2047.0,2045.0,5.15989334]
[1773326771292,4.8793918,2046.8,2045.3,5.15989334]
[1773326771491,0.00491267,2047.0,2045.3,5.15989334]
[1773326771492,4.8793918,2046.4,2045.3,5.15989334]
[1773326771990,4.8793918,2046.1,2045.1,5.15989334]
[1773326772679,4.8793918,2046.1,2045.0,7.05004207]
[1773326772880,4.8793918,2046.1,2045.1,5.15989334]
[1773326773485,4.8793918,2046.1,2045.0,12.20993541]
[1773326773681,4.8793918,2046.1,2045.1,5.15989334]
[1773326775691,4.8793918,2046.4,2045.4,5.15989334]
[1773326775892,2.86952472,2046.9,2045.4,5.15989334]
[1773326775893,4.8793918,2046.9,2045.8,5.15989334]
[1773326776094,4.8793918,2046.9,2046.0,5.15989334]
[1773326777195,0.00491267,2047.0,2046.0,5.15989334]
[1773326777604,4.88430447,2047.0,2046.0,5.15989334]
[1773326777899,4.88430447,2047.0,2046.2,5.15989334]
[1773326777900,0.00491267,2047.0,2046.2,5.15989334]
[1773326778105,4.8793918,2047.8,2046.4,5.15989334]
[1773326778303,4.8793918,2047.5,2046.4,5.15989334]
[1773326778998,4.88554023,2047.5,2046.6,5.15989334]
[1773326779203,6.00333,2048.6,2046.8,8.02941806]
[1773326779204,4.8793918,2048.4,2046.8,8.02941806]
[1773326779400,4.8793918,2048.4,2047.4,5.15989334]
[1773326779697,4.8793918,2048.4,2047.6,5.15989334]
[1773326779903,4.8793918,2048.2,2047.3,5.15989334]
[1773326780204,4.98944598,2048.2,2047.0,5.15989334]
[1773326780904,0.00402163,2048.2,2047.3,5.00959503]
[1773326781302,4.98944598,2048.2,2047.3,5.00959503]
[1773326781904,4.98944598,2048.2,2047.0,5.00959503]
[1773326782104,4.98944598,2048.2,2047.0,5.25380503]
[1773326782602,7.81135383,2048.9,2047.8,5.00959503]
[1773326782603,4.98542435,2048.8,2047.8,5.00959503]
[1773326782905,4.98542435,2048.8,2047.9,5.00959503]
[1773326783508,0.00348703,2048.8,2047.9,5.00959503]
[1773326785209,4.98891138,2048.8,2047.9,5.00959503]
[1773326785900,0.00348703,2048.8,2047.9,5.00959503]
[1773326786107,0.76935383,2048.9,2047.9,5.00959503]
[1773326786303,0.76935383,2048.9,2048.1,5.00959503]
[1773326786609,4.98542435,2049.8,2048.4,5.00959503]
[1773326786802,4.98542435,2050.2,2049.0,5.00959503]
[1773326787111,4.98542435,2049.9,2049.0,5.01327138]
[1773326787905,4.98542435,2049.8,2049.0,0.00367635]
[1773326788403,7.039,2050.0,2049.0,5.01327138]
[1773326788608,4.98542435,2050.0,2049.0,5.01327138]
[1773326789202,0.00621683,2050.2,2049.2,5.25354503]
[1773326789517,6.23893,2051.4,2049.1,9.90752472]
[1773326789518,4.98542435,2052.6,2050.3,5.00959503]
[1773326789806,4.98542435,2052.6,2050.1,2.86952472]
[1773326789807,5.22911435,2051.4,2050.1,5.00959503]
[1773326790312,4.98938542,2051.4,2050.1,5.00959503]
[1773326790612,4.98542435,2051.1,2050.1,5.00959503]
[1773326790809,4.98542435,2050.8,2049.8,5.00959503]
[1773326791014,4.98542435,2050.8,2049.6,7.037]
[1773326791212,4.98542435,2050.8,2049.7,5.00959503]
[1773326791606,4.98542435,2051.2,2049.7,5.00959503]
[1773326792913,4.98542435,2051.2,2049.8,5.25347503]
[1773326793313,4.98542435,2051.2,2049.8,5.00959503]
[1773326795714,4.98542435,2051.2,2049.0,13.20536133]
[1773326795715,5.22916435,2051.1,2049.5,5.00959503]
[1773326796015,4.98542435,2050.6,2049.2,12.04259503]
[1773326796316,4.98542435,2050.6,2049.5,5.00959503]
[1773326796514,4.98542435,2050.9,2049.7,5.00959503]
[1773326797409,5.99899107,2051.4,2049.7,5.00959503]
[1773326797410,4.98542435,2050.7,2049.7,5.00959503]
[1773326797715,4.98542435,2051.0,2049.7,5.00959503]
[1773326798207,4.98542435,2051.0,2049.4,5.00959503]
[1773326798407,4.98542435,2051.0,2049.1,5.00959503]
[1773326798408,4.98542435,2050.6,2049.1,5.00959503]
[1773326798708,4.98542435,2050.4,2049.1,5.00959503]
[1773326799504,4.98542435,2050.4,2049.3,5.00959503]
[1773326799906,4.98542435,2051.0,2049.7,5.00959503]
[1773326800109,4.98542435,2050.8,2049.2,5.00959503]
[1773326800314,4.98542435,2050.6,2049.2,5.00959503]
[1773326801508,4.98542435,2050.4,2049.2,5.00959503]